{"text_format":"3","workbook":"xlsx","n_sheets":2,"sheets":["Fatura","Şirket Kurulumu"],"not_rendered":{"images":1,"defined_names":27},"read":"whole","date_system":"1900"}

{"sheet":"Fatura","index":0,"n_rows":35,"n_cols":7,"rows_kept":35,"merged":[[1,3,2,4],[3,3,3,4],[4,3,4,4],[5,3,5,4],[23,1,23,3],[24,1,24,3],[25,1,25,3],[26,1,26,3]]}
[null,"FATURA","0005"]
[null,{"$f":"TODAY()","v":"2022-04-06"},null,{"$f":"FaturaToplamı","v":79.65},null," ","Şirket Kurulumu"]
[null,"SON ÖDEME TARİHİ:",{"$f":"TODAY()+15","v":"2022-04-21"},null,null," "]
[null,"KIM ABERCROMBIE",null,"ADVENTURE WORKS"]
[null,"Fabrikam, Inc.",null,"23456 Maple Street"]
[null,"1234 First Street",null,"Orange Grove, CA 09876"]
[null,"Forest, veya 12345"]
[null,"MİKTAR","AYRINTILAR","BİRİM FİYAT","SATIR TOPLAMI"]
[null,2,"Widget’lar",14.95,{"$f":"IFERROR(FaturaAyrıntıları[[#This Row],[BİRİM FİYAT]]*FaturaAyrıntıları[[#This Row],[MİKTAR]],\"\")","v":{"v":29.9,"d":"29.90"}}]
[null,5,"Temizleyiciler",9.95,{"$f":"IFERROR(FaturaAyrıntıları[[#This Row],[BİRİM FİYAT]]*FaturaAyrıntıları[[#This Row],[MİKTAR]],\"\")","v":49.75}]
[{"$nulls":4},{"$f":"IFERROR(FaturaAyrıntıları[[#This Row],[BİRİM FİYAT]]*FaturaAyrıntıları[[#This Row],[MİKTAR]],\"\")","v":0}]
[{"$nulls":4},{"$f":"IFERROR(FaturaAyrıntıları[[#This Row],[BİRİM FİYAT]]*FaturaAyrıntıları[[#This Row],[MİKTAR]],\"\")","v":0}]
[{"$nulls":4},{"$f":"IFERROR(FaturaAyrıntıları[[#This Row],[BİRİM FİYAT]]*FaturaAyrıntıları[[#This Row],[MİKTAR]],\"\")","v":0}]
[{"$nulls":4},{"$f":"IFERROR(FaturaAyrıntıları[[#This Row],[BİRİM FİYAT]]*FaturaAyrıntıları[[#This Row],[MİKTAR]],\"\")","v":0}]
[{"$nulls":4},{"$f":"IFERROR(FaturaAyrıntıları[[#This Row],[BİRİM FİYAT]]*FaturaAyrıntıları[[#This Row],[MİKTAR]],\"\")","v":0}]
[{"$nulls":4},{"$f":"IFERROR(FaturaAyrıntıları[[#This Row],[BİRİM FİYAT]]*FaturaAyrıntıları[[#This Row],[MİKTAR]],\"\")","v":0}]
[{"$nulls":4},{"$f":"IFERROR(FaturaAyrıntıları[[#This Row],[BİRİM FİYAT]]*FaturaAyrıntıları[[#This Row],[MİKTAR]],\"\")","v":0}]
[{"$nulls":4},{"$f":"IFERROR(FaturaAyrıntıları[[#This Row],[BİRİM FİYAT]]*FaturaAyrıntıları[[#This Row],[MİKTAR]],\"\")","v":0}]
[{"$nulls":4},{"$f":"IFERROR(FaturaAyrıntıları[[#This Row],[BİRİM FİYAT]]*FaturaAyrıntıları[[#This Row],[MİKTAR]],\"\")","v":0}]
[{"$nulls":4},{"$f":"IFERROR(FaturaAyrıntıları[[#This Row],[BİRİM FİYAT]]*FaturaAyrıntıları[[#This Row],[MİKTAR]],\"\")","v":0}]
[{"$nulls":4},{"$f":"IFERROR(FaturaAyrıntıları[[#This Row],[BİRİM FİYAT]]*FaturaAyrıntıları[[#This Row],[MİKTAR]],\"\")","v":0}]
[{"$nulls":4},{"$f":"IFERROR(FaturaAyrıntıları[[#This Row],[BİRİM FİYAT]]*FaturaAyrıntıları[[#This Row],[MİKTAR]],\"\")","v":0}]
[{"$nulls":4},{"$f":"IFERROR(FaturaAyrıntıları[[#This Row],[BİRİM FİYAT]]*FaturaAyrıntıları[[#This Row],[MİKTAR]],\"\")","v":0}]
[null,"İndirim"]
[null,"Net Toplam",null,null,{"$f":"SUM(FaturaAyrıntıları[SATIR TOPLAMI])-E24","v":{"v":79.65,"d":"₺79.65"}}]
[null,"Vergi"]
[null,{"$f":"REPT(ŞirketKurulumu_ParaBirimiKısaltmanız,LEN(ŞirketKurulumu_ParaBirimiKısaltmanız)>0) & \" Toplam\"","v":"ABD doları Toplam"},null,null,{"$f":"IFERROR(E25+E26, \"\")","v":{"v":79.65,"d":"₺79.65"}}]
[null,"ÖDEME AYRINTILARI",null,null,"DİĞER BİLGİLER"]
[null,"Lehdar Adı:",{"$f":" ŞirketKurulumu_BankaLehdarAdı","v":"Adventure Works"},null,{"$f":"IFERROR(ŞirketKurulumu_Adınız,\"\")","v":"Greg Akselrod"}]
[null,"Banka Adı:",{"$f":"ŞirketKurulumu_BankaAdı","v":"Woodgrove Bank"},null,{"$f":"IFERROR(\"Telefon: \" & ŞirketKurulumu_Telefonunuz,\"\")","v":"Telefon: 425-555-0150"}]
[null,"Banka Adresi:",{"$f":"ŞirketKurulumu_BankaAdresi","v":"234 Main St. Orange Grove, CA 09876"},null,{"$f":"IFERROR(\"Faks: \" &ŞirketKurulumu_Faksınız,\"\")","v":"Faks: 425-555-0151"}]
[null,"Hesap Numarası:",{"$f":"ŞirketKurulumu_BankaHesabı","v":1234567},null,{"$f":"IFERROR(ŞirketKurulumu_URLniz,\"\")","v":"Adventure-Works.com"}]
[null,"Yönlendirme Numarası (SWIFT Kodu)",{"$f":"ŞirketKurulumu_BankaYönlendirmesi","v":9876543210},null,{"$f":"IFERROR(ŞirketKurulumu_Epostanız,\"\")","v":"Accounting@Adventure-Works.com"}]
[null,"Ödeme Referansı:",{"$f":"FaturaNumarasıGörüntülemesi","v":"0005"},null,{"$f":"IFERROR(IF(LEN(Client_PO),\"Sözleşme/PO: \" & Client_PO,\"\"),\"\")","v":""}]
[null,{"$f":"UPPER(\"Ödeme, banka havalesi veya çek ile yapılmalıdır \" & ŞirketKurulumu_ÇekÖdenen & \".\")","v":"ÖDEME, BANKA HAVALESİ VEYA ÇEK İLE YAPILMALIDIR ADVENTURE WORKS."}]

{"sheet":"Şirket Kurulumu","index":1,"n_rows":20,"n_cols":5,"rows_kept":20}
[null,"ŞİRKET KURULUMU"]
[null,"FATURAYI KESEN ŞİRKETİN AYRINTILARI","DEĞER",null,"Fatura"]
[null,"Ad","Greg Akselrod"]
[null,"Şirket Adı","ADVENTURE WORKS"]
[null,"Adres Satırı 1","23456 Maple Street"]
[null,"Adres Satırı 2","Orange Grove, CA 09876"]
[null,"Adres Satırı 3"]
[null,"Adres Satırı 4"]
[null,"Adres Satırı 5"]
[null,"Telefon","425-555-0150"]
[null,"Faks","425-555-0151"]
[null,"Web Sitesi","Adventure-Works.com"]
[null,"E-posta","Accounting@Adventure-Works.com"]
[null,"Para Birimi Kısaltması","ABD doları"]
[null,"Banka Havalesi için Lehdar Adı","Adventure Works"]
[null,"Banka Adı","Woodgrove Bank"]
[null,"Banka Adresi","234 Main St. Orange Grove, CA 09876"]
[null,"Hesap Numarası",1234567]
[null,"Yönlendirme Numarası (SWIFT Kodu)",9876543210]
[null,"Çekleri Şu Ada Yazın","Adventure Works"]